fUSD/lending_fUSD_20240301
["ID","MTS","AMOUNT","RATE_DAILY","PERIOD"]
[315914710,1709279783054,1023.55,0.00022273,2]
[315914711,1709279783092,206.32,0.00021633,2]
[315914712,1709279783277,2372.5542,0.000219,2]
[315914713,1709279783703,500.0,0.00021917,2]
[315914714,1709279783830,500.0,0.00022191,2]
[315914715,1709279783892,500.0,0.00022465,2]
[315914716,1709279784373,500.0,0.00021917,2]
[315914717,1709279784406,6695.04,0.00021644,2]
[315914718,1709279785810,904.34,0.00021917,2]
[315914719,1709279785939,510.08605465,0.00021917,2]
[315914720,1709279786078,904.34,0.00022191,2]
[315914721,1709279786554,904.34,0.00022465,2]
[315914722,1709279786795,158003.2677,0.000219,2]
[315914723,1709279786914,4825.89,0.00021917,2]
[315914724,1709279787181,4825.89,0.00022191,2]
[315914725,1709279787463,4825.89,0.00022465,2]
[315914726,1709279787740,500.0,0.00021917,2]
[315914727,1709279787855,500.0,0.00021917,2]
[315914728,1709279787928,553.76,0.00021917,2]
[315914729,1709279788000,500.0,0.00022191,2]
[315914730,1709279788466,500.0,0.00022191,2]
[315914731,1709279788507,553.76,0.00022191,2]
[315914732,1709279788548,500.0,0.00022465,2]
[315914733,1709279788625,553.76,0.00022465,2]
[315914734,1709279788764,500.0,0.00022465,2]
[315914735,1709279789124,874.53,0.00021917,2]
[315914736,1709279789391,874.53,0.00022191,2]
[315914737,1709279789652,874.53,0.00022465,2]
[315914738,1709279791267,500.0,0.00021917,2]
[315914739,1709279791307,257.26281876,0.000215,2]
[315914740,1709279791549,500.0,0.00022191,2]
[315914741,1709279792224,250.24512922,0.00022465,2]
[315914742,1709279792257,711.86,0.00021999,2]
[315914743,1709279792448,711.86,0.00022273,2]
[315914744,1709279792571,500.0,0.00021917,2]
[315914745,1709279792733,1462.58,0.00021917,2]
[315914746,1709279792839,500.0,0.00022191,2]
[315914747,1709279792998,1462.58,0.00022191,2]
[315914748,1709279793406,500.0,0.00022465,2]
[315914749,1709279793439,437.33609476,0.00022,2]
[315914750,1709279793483,1462.58,0.00022465,2]
[315914751,1709279793984,1332.17,0.00021917,2]
[315914752,1709279794021,500.0,0.00021917,2]
[315914753,1709279794257,1332.17,0.00022191,2]
[315914754,1709279794325,500.0,0.00022191,2]
[315914755,1709279794505,1332.17,0.00022465,2]
[315914756,1709279794538,500.0,0.00021917,2]
[315914757,1709279794595,500.0,0.00022465,2]
[315914758,1709279794798,500.0,0.00021917,2]
[315914759,1709279795069,500.0,0.00022191,2]
[315914760,1709279795117,524.73639735,0.00022191,2]
[315914761,1709279795364,500.0,0.00022465,2]
[315914762,1709279796639,778.89,0.00021917,2]
[315914763,1709279796919,778.89,0.00022191,2]
[315914764,1709279797181,778.89,0.00022465,2]
[315914765,1709279797219,500.0,0.00021917,2]
[315914766,1709279797449,630.28967582,0.00022191,2]
[315914767,1709279797828,500.0,0.00021917,2]
[315914768,1709279798094,184.96,0.00022191,2]
[315914769,1709279800302,2081.99,0.00021917,2]
[315914770,1709279800423,500.0,0.00021917,2]
[315914771,1709279800588,2081.99,0.00022191,2]
[315914772,1709279800781,500.0,0.00022191,2]
[315914773,1709279800893,2081.99,0.00022465,2]
[315914774,1709279800983,500.0,0.00022465,2]
[315914775,1709279801428,946.61,0.00021917,2]
[315914776,1709279801666,946.61,0.00022191,2]
[315914777,1709279801901,500.0,0.00021917,2]
[315914778,1709279801940,946.61,0.00022465,2]
[315914779,1709279802189,500.0,0.00022191,2]
[315914780,1709279802457,500.0,0.00022465,2]
[315914781,1709279803325,500.0,0.00021917,2]
[315914782,1709279803605,500.0,0.00022191,2]
[315914783,1709279803787,10360.8,0.00021999,2]
[315914784,1709279803824,500.0,0.00021917,2]
[315914785,1709279803884,500.0,0.00022465,2]
[315914786,1709279804078,10360.8,0.00022273,2]
[315914787,1709279804421,500.0,0.00022191,2]
[315914788,1709279804716,386.99252338,0.00022465,2]
[315914789,1709279805103,500.0,0.00021917,2]
[315914790,1709279805366,500.0,0.00022191,2]
[315914791,1709279805621,898.0,0.000215,3]
[315914792,1709279805663,500.0,0.00022465,2]
[315914793,1709279806260,808.0,0.000215,3]
[315914794,1709279807529,500.0,0.00021917,2]
[315914795,1709279807714,1157.49,0.00021917,2]
[315914796,1709279807783,500.0,0.00022191,2]
[315914797,1709279807976,1157.49,0.00022191,2]
[315914798,1709279808252,1157.49,0.00022465,2]
[315914799,1709279808329,500.0,0.00021917,2]
[315914800,1709279808396,500.0,0.00022465,2]
[315914801,1709279808621,500.0,0.00022191,2]
[315914802,1709279808921,500.0,0.00022465,2]
[315914803,1709279810202,1134.34,0.00021917,2]
[315914804,1709279810468,1134.34,0.00022191,2]
[315914805,1709279810680,500.0,0.00021917,2]
[315914806,1709279810765,1134.34,0.00022465,2]
[315914807,1709279810909,1774.87,0.00021917,2]
[315914808,1709279811113,500.0,0.00022191,2]
[315914809,1709279811183,1774.87,0.00022191,2]
[315914810,1709279811243,500.0,0.00022465,2]
[315914811,1709279811446,1774.87,0.00022465,2]
[315914812,1709279812588,500.0,0.00021917,2]
[315914813,1709279812622,1157.82,0.00021999,2]
[315914814,1709279812873,500.0,0.00022191,2]
[315914815,1709279812907,1157.82,0.00022273,2]
[315914816,1709279813003,9201.41,0.00021918,2]
[315914817,1709279813156,500.0,0.00022465,2]
[315914818,1709279815093,500.0,0.00021917,2]
[315914819,1709279815295,518.77152981,0.00021917,2]
[315914820,1709279815653,500.0,0.00021917,2]
[315914821,1709279815692,6407.82,0.00021917,2]
[315914822,1709279815732,500.0,0.00022191,2]
[315914823,1709279815922,500.0,0.00022191,2]
[315914824,1709279815961,6407.82,0.00022191,2]
[315914825,1709279815993,500.0,0.00022465,2]
[315914826,1709279816233,500.0,0.00022465,2]
[315914827,1709279816285,6407.82,0.00022465,2]
[315914828,1709279817054,578.21,0.00021917,2]
[315914829,1709279817330,578.21,0.00022191,2]
[315914830,1709279817634,578.21,0.00022465,2]
[315914831,1709279818490,500.0,0.00021917,2]
[315914832,1709279818783,500.0,0.00022191,2]
[315914833,1709279819051,500.0,0.00022465,2]
[315914834,1709279820221,580.49,0.00021917,2]
[315914835,1709279820375,580.49,0.00022191,2]
[315914836,1709279820504,580.49,0.00022465,2]
[315914837,1709279820685,500.0,0.00021917,2]
[315914838,1709279821025,500.0,0.00022191,2]
[315914839,1709279821064,653.19,0.00021917,2]
[315914840,1709279821266,500.0,0.00022465,2]
[315914841,1709279821659,653.19,0.00022191,2]
[315914842,1709279821710,630.32,0.00021999,2]
[315914843,1709279821846,1297.84,0.00021917,2]
[315914844,1709279821939,653.19,0.00022465,2]
[315914845,1709279821976,1027.804071,0.00022449,3]
[315914846,1709279822014,630.32,0.00022273,2]
[315914847,1709279822106,1297.84,0.00022191,2]
[315914848,1709279822414,1297.84,0.00022465,2]
[315914849,1709279824625,559.85,0.00021917,2]
[315914850,1709279824883,559.85,0.00022191,2]
[315914851,1709279825194,559.85,0.00022465,2]
[315914852,1709279825405,500.0,0.00021917,2]
[315914853,1709279825688,500.0,0.00022191,2]
[315914854,1709279825961,500.0,0.00022465,2]
[315914855,1709279826459,500.0,0.00021917,2]
[315914856,1709279826746,500.0,0.00022191,2]
[315914857,1709279827022,500.0,0.00022465,2]
[315914858,1709279828113,1975.25,0.00021917,2]
[315914859,1709279828425,1975.25,0.00022191,2]
[315914860,1709279828705,1975.25,0.00022465,2]
[315914861,1709279829168,5731.6598,0.00022402,2]
[315914862,1709279829260,500.0,0.00021917,2]
[315914863,1709279830284,500.0,0.00022191,2]
[315914864,1709279830360,500.0,0.00022465,2]
[315914865,1709279830451,606.85,0.00021999,2]
[315914866,1709279830531,1764.33,0.00021917,2]
[315914867,1709279830566,606.85,0.00022273,2]
[315914868,1709279830874,1764.33,0.00022191,2]
[315914869,1709279830921,500.0,0.00021917,2]
[315914870,1709279831107,1764.33,0.00022465,2]
[315914871,1709279831139,500.0,0.00022191,2]
[315914872,1709279831398,500.0,0.00022465,2]
[315914873,1709279834002,798.38,0.00021917,2]
[315914874,1709279834262,798.38,0.00022191,2]
[315914875,1709279834413,1110.29,0.00021917,2]
[315914876,1709279834548,798.38,0.00022465,2]
[315914877,1709279834662,12441.63085894,0.000225,2]
[315914878,1709279834741,1110.29,0.00022191,2]
[315914879,1709279834992,1110.29,0.00022465,2]
[315914880,1709279835398,500.0,0.00021917,2]
[315914881,1709279835696,500.0,0.00022191,2]
[315914882,1709279835971,500.0,0.00022465,2]
[315914883,1709279836041,6606.0,0.000219,2]
[315914884,1709279837156,23045.0553443,0.00022496,2]
[315914885,1709279838872,500.0,0.00021917,2]
[315914886,1709279839005,500.0,0.00022191,2]
[315914887,1709279839047,500.0,0.00021917,2]
[315914888,1709279839184,500.0,0.00021917,2]
[315914889,1709279839302,500.0,0.00022191,2]
[315914890,1709279839337,500.0,0.00022465,2]
[315914891,1709279839506,500.0,0.00022191,2]
[315914892,1709279839634,500.0,0.00022465,2]
[315914893,1709279839731,500.0,0.00022465,2]
[315914894,1709279841250,500.0,0.00021917,2]
[315914895,1709279841286,532.91,0.00021999,2]
[315914896,1709279841528,532.91,0.00022273,2]
[315914897,1709279841614,500.0,0.00022191,2]
[315914898,1709279841915,500.0,0.00022465,2]
[315914899,1709279842073,647.52,0.00021917,2]
[315914900,1709279842294,500.0,0.00021917,2]
[315914901,1709279842378,647.52,0.00022191,2]
[315914902,1709279842448,956.0,0.00021917,2]
[315914903,1709279842573,500.0,0.00022191,2]
[315914904,1709279842656,647.52,0.00022465,2]
[315914905,1709279842692,1731.33,0.00021917,2]
[315914906,1709279842746,956.0,0.00022191,2]
[315914907,1709279842830,500.0,0.00022465,2]
[315914908,1709279842968,1731.33,0.00022191,2]
[315914909,1709279843012,956.0,0.00022465,2]
[315914910,1709279843209,1731.33,0.00022465,2]
[315914911,1709279843436,1156.72,0.00021917,2]
[315914912,1709279844140,1156.72,0.00022191,2]
[315914913,1709279844195,500.0,0.00021917,2]
[315914914,1709279844255,1156.72,0.00022465,2]
[315914915,1709279844307,500.0,0.00022191,2]
[315914916,1709279844380,500.0,0.00022465,2]
[315914917,1709279846374,930.7,0.00021917,2]
[315914918,1709279846772,930.7,0.00022191,2]
[315914919,1709279847040,500.0,0.00021917,2]
[315914920,1709279847228,930.7,0.00022465,2]
[315914921,1709279847344,500.0,0.00022191,2]
[315914922,1709279847536,500.0,0.00022465,2]
[315914923,1709279848295,500.0,0.00021917,2]
[315914924,1709279848593,500.0,0.00022191,2]
[315914925,1709279848842,500.0,0.00022465,2]
[315914926,1709279849433,500.0,0.00021917,2]
[315914927,1709279849627,500.0,0.00022191,2]
[315914928,1709279849889,500.0,0.00022465,2]
[315914929,1709279850827,822.2,0.00021999,2]
[315914930,1709279851049,822.2,0.00022273,2]
[315914931,1709279852126,949.8,0.00021917,2]
[315914932,1709279852383,949.8,0.00022191,2]
[315914933,1709279852623,500.0,0.00021917,2]
[315914934,1709279852820,500.0,0.00021917,2]
[315914935,1709279852876,500.0,0.00022191,2]
[315914936,1709279852984,949.8,0.00022465,2]
[315914937,1709279853089,500.0,0.00022191,2]
[315914938,1709279853138,500.0,0.00022465,2]
[315914939,1709279853511,500.0,0.00022465,2]
[315914940,1709279854507,557.23,0.00021917,2]
[315914941,1709279854799,557.23,0.00022191,2]
[315914942,1709279854940,500.0,0.00021917,2]
[315914943,1709279855078,557.23,0.00022465,2]
[315914944,1709279855384,577.07,0.00021917,2]
[315914945,1709279855547,500.0,0.00022191,2]
[315914946,1709279855644,577.07,0.00022191,2]
[315914947,1709279855808,566.05174778,0.00022465,2]
[315914948,1709279855931,577.07,0.00022465,2]
[315914949,1709279856605,2745.02,0.00021917,2]
[315914950,1709279856810,1801.74,0.00021917,2]
[315914951,1709279856880,2745.02,0.00022191,2]
[315914952,1709279857086,1801.74,0.00022191,2]
[315914953,1709279857136,2745.02,0.00022465,2]
[315914954,1709279857518,1801.74,0.00022465,2]
[315914955,1709279857694,500.0,0.00021917,2]
[315914956,1709279857963,500.0,0.00022191,2]
[315914957,1709279858242,500.0,0.00022465,2]
[315914958,1709279858782,4280.81,0.00021917,2]
[315914959,1709279859032,4280.81,0.00022191,2]
[315914960,1709279859314,4280.81,0.00022465,2]
[315914961,1709279859553,500.0,0.00021917,2]
[315914962,1709279859828,500.0,0.00022191,2]
[315914963,1709279860101,500.0,0.00022465,2]
[315914964,1709279862099,500.0,0.00021917,2]
[315914965,1709279862401,500.0,0.00022191,2]
[315914966,1709279863064,13436.7421988,0.00022496,2]
[315914967,1709279863236,2222.03,0.00021999,2]
[315914968,1709279863435,155.0,0.000225,2]
[315914969,1709279863509,2222.03,0.00022273,2]
[315914970,1709279865063,675.47,0.00021917,2]
[315914971,1709279865139,675.47,0.00022191,2]
[315914972,1709279865310,500.0,0.00021917,2]
[315914973,1709279865572,500.0,0.00022191,2]
[315914974,1709279865652,675.47,0.00022465,2]
[315914975,1709279865830,697.74,0.00021917,2]
[315914976,1709279865865,500.0,0.00022465,2]
[315914977,1709279866094,697.74,0.00022191,2]
[315914978,1709279866289,500.0,0.00021917,2]
[315914979,1709279866348,697.74,0.00022465,2]
[315914980,1709279866558,500.0,0.00022191,2]
[315914981,1709279866848,500.0,0.00022465,2]
[315914982,1709279868267,500.0,0.00021917,2]
[315914983,1709279868544,500.0,0.00022191,2]
[315914984,1709279868880,500.0,0.00022465,2]
[315914985,1709279869638,801.14,0.00021917,2]
[315914986,1709279869910,801.14,0.00022191,2]
[315914987,1709279869944,500.0,0.00021917,2]
[315914988,1709279870198,500.0,0.00022191,2]
[315914989,1709279870240,801.14,0.00022465,2]
[315914990,1709279870278,155.16,0.00021918,2]
[315914991,1709279870830,500.0,0.00022465,2]
[315914992,1709279873146,500.0,0.00021917,2]
[315914993,1709279873427,500.0,0.00022191,2]
[315914994,1709279873703,500.0,0.00022465,2]
[315914995,1709279873831,8618.93,0.00021917,2]
[315914996,1709279874058,8618.93,0.00022191,2]
[315914997,1709279874270,1411.02,0.00021917,2]
[315914998,1709279874316,8618.93,0.00022465,2]
[315914999,1709279874535,1411.02,0.00022191,2]
[315915000,1709279874801,1411.02,0.00022465,2]
[315915001,1709279875087,1263.48,0.00021917,2]
[315915002,1709279875411,500.0,0.00021917,2]
[315915003,1709279875687,1263.48,0.00022191,2]
[315915004,1709279875726,500.0,0.00022191,2]
[315915005,1709279875801,500.0,0.00021917,2]
[315915006,1709279875956,1263.48,0.00022465,2]
[315915007,1709279875992,500.0,0.00022465,2]
[315915008,1709279876076,500.0,0.00022191,2]
[315915009,1709279876359,500.0,0.00022465,2]
[315915010,1709279877725,500.0,0.00021917,2]
[315915011,1709279877997,500.0,0.00022191,2]
[315915012,1709279878264,500.0,0.00022465,2]
[315915013,1709279878603,967.9,0.00021917,2]
[315915014,1709279878871,967.9,0.00022191,2]
[315915015,1709279879121,967.9,0.00022465,2]
[315915016,1709279879238,500.0,0.00021999,2]
[315915017,1709279879415,500.0,0.00022273,2]
[315915018,1709279879694,1397.73,0.00021917,2]
[315915019,1709279879959,1397.73,0.00022191,2]
[315915020,1709279880264,1397.73,0.00022465,2]
[315915021,1709279880432,505.11,0.00021917,2]
[315915022,1709279880686,505.11,0.00022191,2]
[315915023,1709279880977,505.11,0.00022465,2]
[315915024,1709279881328,500.0,0.00021917,2]
[315915025,1709279882018,500.0,0.00022191,2]
[315915026,1709279882103,500.0,0.00022465,2]
[315915027,1709279882837,775.64,0.00021999,2]
[315915028,1709279883027,775.64,0.00022273,2]
[315915029,1709279883453,516.74,0.00021917,2]
[315915030,1709279883715,516.74,0.00022191,2]
[315915031,1709279884355,516.74,0.00022465,2]
[315915032,1709279884401,1844.61,0.00021917,2]
[315915033,1709279884602,1844.61,0.00022191,2]
[315915034,1709279884879,1844.61,0.00022465,2]
[315915035,1709279884998,1317.7,0.00021917,2]
[315915036,1709279885356,1317.7,0.00022191,2]
[315915037,1709279885635,1317.7,0.00022465,2]
[315915038,1709279887365,521.18647588,0.00021917,2]
[315915039,1709279889052,553.89,0.00021917,2]
[315915040,1709279889335,553.89,0.00022191,2]
[315915041,1709279889617,553.89,0.00022465,2]
[315915042,1709279891784,162.06,0.00021688,2]
[315915043,1709279892910,500.0,0.00021917,2]
[315915044,1709279892955,500.0,0.00022191,2]
[315915045,1709279893097,500.0,0.00022465,2]
[315915046,1709279893476,500.0,0.00021917,2]
[315915047,1709279893557,500.0,0.00021917,2]
[315915048,1709279893757,500.0,0.00022191,2]
[315915049,1709279893848,500.0,0.00022191,2]
[315915050,1709279894002,500.0,0.00022465,2]
[315915051,1709279894114,500.0,0.00022465,2]
[315915052,1709279894634,500.0,0.00021917,2]
[315915053,1709279894913,500.0,0.00022191,2]
[315915054,1709279894964,3242.02,0.00021917,2]
[315915055,1709279894999,590.8083346,0.00021917,2]
[315915056,1709279895167,500.0,0.00022465,2]
[315915057,1709279895583,3242.02,0.00022191,2]
[315915058,1709279895857,3242.02,0.00022465,2]
[315915059,1709279896002,827.0,0.00021917,2]
[315915060,1709279896284,827.0,0.00022191,2]
[315915061,1709279896422,200.0,0.00021688,2]
[315915062,1709279896559,827.0,0.00022465,2]
[315915063,1709279896852,9808.77,0.00021999,2]
[315915064,1709279897110,9808.77,0.00022273,2]
[315915065,1709279898934,500.0,0.00021917,2]
[315915066,1709279899211,500.0,0.00022191,2]
[315915067,1709279899539,500.0,0.00022465,2]
[315915068,1709279900708,500.0,0.00021917,2]
[315915069,1709279900914,506.35,0.00021917,2]
[315915070,1709279900982,500.0,0.00022191,2]
[315915071,1709279901280,500.0,0.00022465,2]
[315915072,1709279901429,506.35,0.00022191,2]
[315915073,1709279901761,500.0,0.00021917,2]
[315915074,1709279901810,506.35,0.00022465,2]
[315915075,1709279902015,500.0,0.00022191,2]
[315915076,1709279902215,9945.3645,0.00022419,2]
[315915077,1709279902326,500.0,0.00022465,2]
[315915078,1709279908214,-999.45,0.00021917,2]
[315915079,1709279908242,-1688.4,0.00021917,2]
[315915080,1709279908268,-1654.28,0.00021917,2]
[315915081,1709279908295,-500.0,0.00021917,2]
[315915082,1709279908323,-2187.63,0.00021917,2]
[315915083,1709279908351,-500.0,0.00021917,2]
[315915084,1709279908379,-500.0,0.00021917,2]
[315915085,1709279908406,-8204.62,0.00021999,2]
[315915086,1709279908434,-999.45,0.00022191,2]
[315915087,1709279908461,-1688.4,0.00022191,2]
[315915088,1709279908488,-1654.28,0.00022191,2]
[315915089,1709279908513,-424.5897962,0.00022191,2]
[315915090,1709279908540,-2187.63,0.00022191,2]
[315915091,1709279908568,-500.0,0.00022191,2]
[315915092,1709279908598,-500.0,0.00022191,2]
[315915093,1709279908624,-8204.62,0.00022273,2]
[315915094,1709279908651,-999.45,0.00022465,2]
[315915095,1709279908679,-1688.4,0.00022465,2]
[315915096,1709279908707,-1654.28,0.00022465,2]
[315915097,1709279908734,-2187.63,0.00022465,2]
[315915098,1709279908761,-500.0,0.00022465,2]
[315915099,1709279908788,-500.0,0.00022465,2]
[315915100,1709279908815,-437.33609476,0.00022501,2]
[315915101,1709279908844,-155.34,0.00022502,2]
[315915102,1709279908873,-150.0,0.00022512,2]
[315915103,1709279908899,-300.0,0.00022512,2]
[315915104,1709279908928,-161.25,0.00022514,2]
[315915105,1709279908956,-9058.20356252,0.00022519,2]
[315915106,1709279908984,-2831.11,0.00022519,2]
[315915107,1709279909012,-8231.03,0.00022519,2]
[315915108,1709279909041,-11305.44,0.00022519,2]
[315915109,1709279909069,-159.15,0.00022544,2]
[315915110,1709279909097,-157.01,0.00022544,2]
[315915111,1709279909123,-1023.55,0.00022547,2]
[315915112,1709279909149,-711.86,0.00022547,2]
[315915113,1709279909178,-10360.8,0.00022547,2]
[315915114,1709279909204,-1157.82,0.00022547,2]
[315915115,1709279909232,-630.32,0.00022547,2]
[315915116,1709279909258,-606.85,0.00022547,2]
[315915117,1709279909285,-532.91,0.00022547,2]
[315915118,1709279909311,-822.2,0.00022547,2]
[315915119,1709279909337,-2222.03,0.00022547,2]
[315915120,1709279909363,-500.0,0.00022547,2]
[315915121,1709279909390,-775.64,0.00022547,2]
[315915122,1709279909419,-9808.77,0.00022547,2]
[315915123,1709279909447,-8204.62,0.00022547,2]
[315915124,1709279909475,-12441.63085894,0.00022548,2]
[315915125,1709279909502,-155.0,0.00022548,2]
[315915126,1709279909529,-969.82,0.00022549,2]
[315915127,1709279909557,-967.44,0.00022549,2]
[315915128,1709279909584,-1673.05,0.00022549,2]
[315915129,1709279909612,-987.82,0.00022549,2]
[315915130,1709279909640,-2141.37,0.00022549,2]
[315915131,1709279909667,-506.84,0.00022549,2]
[315915132,1709279909906,-2114.77,0.00022549,2]
[315915133,1709279909934,-1212.8,0.00022549,2]
[315915134,1709279909961,-1746.24,0.00022549,2]
[315915135,1709279909987,-3607.32,0.00022549,2]
[315915136,1709279910014,-1462.72,0.00022549,2]
[315915137,1709279910040,-1929.71,0.00022549,2]
[315915138,1709279910068,-83405.8503674,0.0002255,2]
[315915139,1709279910094,-555.16,0.00022562,2]
[315915140,1709279910123,-152.56,0.00022562,2]
[315915141,1709279910148,-1000.0,0.000226,2]
[315915142,1709279910175,-1000.0,0.000226,2]
[315915143,1709279910201,-1917.6026,0.000226,2]
[315915144,1709279910227,-155.16,0.00022603,2]
[315915145,1709279910254,-155.02933299,0.0002261,2]
[315915146,1709279910282,-1269.61,0.0002261,2]
[315915147,1709279910308,-192.52,0.0002261,2]
[315915148,1709279910333,-653.35991558,0.00022639,2]
[315915149,1709279910359,-155.34,0.00022648,2]
[315915150,1709279910386,-9058.20356252,0.00022652,2]
[315915151,1709279910411,-167.15,0.00022656,2]
[315915152,1709279910443,-200.0,0.00022687,2]
[315915153,1709279910471,-152.56,0.00022691,2]
[315915154,1709279910497,-284514.77143486,0.000227,2]
[315915155,1709279910522,-13513.72122522,0.000227,2]
[315915156,1709279910548,-151.0,0.000227,7]
[315915157,1709279910574,-231.337517,0.000227,7]
[315915158,1709279910599,-151.0,0.000227,7]
[315915159,1709279910626,-2000.0,0.00022725,2]
[315915160,1709279910652,-200.0,0.00022725,2]
[315915161,1709279910680,-1269.61,0.00022725,2]
[315915162,1709279910712,-192.52,0.00022725,2]
[315915163,1709279910739,-653.35991549,0.00022737,2]
[315915164,1709279910768,-151.0,0.00022739,2]
[315915165,1709279910800,-500.0,0.00022739,2]
[315915166,1709279910832,-1407.41,0.00022739,2]
[315915167,1709279910861,-500.0,0.00022739,2]
[315915168,1709279910891,-500.0,0.00022739,2]
[315915169,1709279910920,-516.06982121,0.00022739,2]
[315915170,1709279910948,-427.45606249,0.00022739,2]
[315915171,1709279910979,-219.34813662,0.00022739,2]
[315915172,1709279911005,-500.0,0.00022739,2]
[315915173,1709279911032,-632.98,0.00022739,2]
[315915174,1709279911062,-628.59558538,0.00022739,2]
[315915175,1709279911091,-500.0,0.00022739,2]
[315915176,1709279911119,-500.0,0.00022739,2]
[315915177,1709279911149,-500.0,0.00022739,2]
[315915178,1709279911177,-500.0,0.00022739,2]
[315915179,1709279911205,-500.0,0.00022739,2]
[315915180,1709279911232,-500.0,0.00022739,2]
[315915181,1709279911259,-500.0,0.00022739,2]
[315915182,1709279911285,-500.0,0.00022739,2]
[315915183,1709279911311,-500.0,0.00022739,2]
[315915184,1709279911337,-500.0,0.00022739,2]
[315915185,1709279911363,-506.83509062,0.00022739,2]
[315915186,1709279911390,-500.0,0.00022739,2]
[315915187,1709279911416,-508.16071912,0.00022739,2]
[315915188,1709279911443,-500.0,0.00022739,2]
[315915189,1709279911469,-500.0,0.00022739,2]
[315915190,1709279911495,-500.0,0.00022739,2]
[315915191,1709279911521,-151.32435442,0.00022739,2]
[315915192,1709279911549,-500.0,0.00022739,2]
[315915193,1709279911576,-500.0,0.00022739,2]
[315915194,1709279911603,-622.93,0.00022739,2]
[315915195,1709279911631,-709.98,0.00022739,2]
[315915196,1709279911658,-515.69727479,0.00022739,2]
[315915197,1709279911687,-500.0,0.00022739,2]
[315915198,1709279911714,-500.0,0.00022739,2]
[315915199,1709279911742,-500.0,0.00022739,2]
[315915200,1709279911772,-232.94817348,0.00022739,2]
[315915201,1709279911800,-500.0,0.00022739,2]
[315915202,1709279911829,-500.0,0.00022739,2]
[315915203,1709279911857,-500.0,0.00022739,2]
[315915204,1709279911887,-500.0,0.00022739,2]
[315915205,1709279911915,-500.0,0.00022739,2]
[315915206,1709279911945,-500.0,0.00022739,2]
[315915207,1709279911973,-500.0,0.00022739,2]
[315915208,1709279911999,-500.0,0.00022739,2]
[315915209,1709279912025,-500.0,0.00022739,2]